Cogmind - Beta 13 @@@ ROGUE MODE // 2024.07.20 @ 19:39:12 Player: Wonda Result: Destroyed by G-47 Trooper with Particle Gun Performance ------------- Evolutions (0) 0 Regions Visited (2) 400 Robots Destroyed (12) 60 Value Destroyed (396) 396 Prototype IDs (0) 0 Alien Tech Used (0) 0 Bonus (0) 0 TOTAL SCORE: 856 Bonus ------- None Cogmind --------- Core Integrity 0/250 Matter 300/300 Energy 250/250 System Corruption 0% Temperature Cool (24) Movement Walking (120) Location -10/Mines Parts ------- > --- POWER (1) -------- Ion Engine > --- PROPULSION (2) --- Aluminum Leg > --- UTILITY (2) ------ Power Shielding > --- WEAPON (2) ------- Mining Claw > --- INVENTORY (5) ---- Datajack Shock Trap Shock Trap Peak State ------------ > --- POWER ------------ Ion Engine > --- PROPULSION ------- Aluminum Leg Aluminum Leg > --- UTILITY ---------- Improved Heat Sink Power Shielding > --- WEAPON ----------- Beam Cannon Mining Claw > --- INVENTORY -------- Aluminum Leg Datajack Shock Trap Shock Trap Shock Trap [Rating: 9] Favorites ----------- Power Ion Engine Engine Ion Engine Propulsion Aluminum Leg Leg Aluminum Leg Utility Power Shielding Device Improved Heat Sink Protection Power Shielding Weapon Beam Cannon Energy Gun Medium Laser Energy Cannon Beam Cannon Ballistic Gun Light Assault Rifle Slashing Weapon Mining Claw Special Melee Weapon Datajack Build | -11 -10 -10 ------- Run | Yrd Mat Min Slots Evolved . | . . . Power . | . . . Propulsion . | . . . Utility . | . . . Weapon . | . . . Parts Attached 21 | 5 4 12 Power 3 | 1 . 2 Engine 3 | 1 . 2 Core . | . . . Reactor . | . . . Propulsion 7 | 2 . 5 Treads . | . . . Leg 7 | 2 . 5 Wheel . | . . . Hover . | . . . Flight . | . . . Utility 3 | . 1 2 Device 2 | . 1 1 Storage . | . . . Processor . | . . . Hackware . | . . . Protection 1 | . . 1 Artifact . | . . . Weapon 8 | 2 3 3 Energy Gun 1 | 1 . . Energy Cannon 1 | . 1 . Ballistic Gun 1 | 1 . . Ballistic Cannon . | . . . Launcher . | . . . Special Weapon . | . . . Impact Weapon . | . . . Slashing Weapon 3 | . 1 2 Piercing Weapon . | . . . Special Melee Weapon 2 | . 1 1 Unidentified Prototypes . | . . . Parts Lost 3 | . . 3 Power . | . . . Propulsion 1 | . . 1 Utility 1 | . . 1 Weapon 1 | . . 1 Highest Loss Streak 2 | . . 2 To Critical Strikes . | . . . Average Slot Usage (%) 87 | . 73 91 Engine 14 | . 14 14 Leg 28 | . 28 28 Device 5 | . 2 7 Protection 10 | . . 13 Energy Cannon 13 | . 13 13 Ballistic Gun 1 | . 7 . Slashing Weapon 10 | . 1 13 Special Melee Weapon 1 | . 4 . Naked Turns . | . . . Heaviest Build 12 | 6 9 12 Greatest Support 20 | 20 20 20 Greatest Overweight (x) . | . . . Average Overweight (x) . | . . . Largest Inventory Capacity 5 | 5 5 5 Average Capacity 5 | 5 5 5 Most Carried 5 | 2 2 5 Average Carried 2 | . 1 3 Final Capacity 5 | 5 5 5 Final Carried 3 | 1 2 3 Class Distribution -------------------- 100% | Mutant Dominant Class ---------------- Mutant | -10/Materials Mutant | -10/Mines Resources | -11 -10 -10 ----------- Run | Yrd Mat Min Matter Collected 418 | 253 30 135 Remotely . | . . . Salvage Created 499 | 47 132 320 Parts 23 | 2 7 14 Haulers Intercepted . | . . . Recyclers Shooed . | . . . Parts Field Recycled . | . . . Retrieved Matter . | . . . Parts Self-Destructed . | . . . Prevented . | . . . Kills | -11 -10 -10 ------- Run | Yrd Mat Min Combat Hostiles Destroyed 10 | 1 2 7 Melee 1 | . . 1 Guns 1 | 1 . . Cannons 8 | . 2 6 Classes Destroyed 3 | 1 2 . Worker 1 | . 1 . Watcher 1 | . 1 . Grunt 10 | 1 2 7 Best Kill Streak 2 | 1 2 2 Combat Bots Only 2 | 1 2 2 Max Kills in Single Turn 1 | 1 1 1 Gunslinging . | . . . Exploded . | . . . Melee 1 | . . 1 Uniques/NPCs Destroyed . | . . . Combat | -11 -10 -10 -------- Run | Yrd Mat Min Hostile Shots Fired 86 | 3 10 73 Missed 25 | 1 6 18 Damage Taken 844 | 20 83 741 Core 260 | . . 260 Absorbed by Shields . | . . . Redirected to Shielding 18 | . . 18 Core Remaining (%) 100 | 100 . . Volleys Fired 58 | 3 15 40 Largest 2 | 2 2 1 Hottest 80 | 70 80 60 Shots Fired 71 | 6 25 40 Gun 16 | 6 10 . Cannon 55 | . 15 40 Launcher . | . . . Special . | . . . Kinetic 13 | 3 10 . Thermal 58 | 3 15 40 Explosive . | . . . Electromagnetic . | . . . Robot Hit Streak 6 | 6 5 5 Robot Miss Streak 3 | . 3 3 Penetration Max . | . . . Secondary Targets . | . . . Shots Hit Robots 49 | 6 12 31 Core Hits 17 | 2 5 10 Critical Kills . | . . . Critical Parts Destroyed . | . . . Critical Strikes . | . . . Melee Attacks 13 | . 2 11 Impact . | . . . Slashing 9 | . . 9 Piercing . | . . . Sneak Attacks 4 | . 2 2 Combat Hostiles . | . . . Follow-up Attacks . | . . . Damage Inflicted 741 | 60 145 536 Guns 83 | 60 23 . Cannons 541 | . 122 419 Explosions . | . . . Melee 117 | . . 117 Ramming . | . . . Kinetic 44 | 21 23 . Thermal 580 | 39 122 419 Explosive . | . . . Electromagnetic . | . . . Impact . | . . . Slashing 117 | . . 117 Piercing . | . . . Highest Corruption . | . . . Average Corruption . | . . . Corruption Purged . | . . . Corruption Blocked . | . . . Overload Shots . | . . . Overflow Damage . | . . . Projectiles . | . . . Explosions . | . . . Melee . | . . . Knockbacks . | . . . Impact . | . . . Kinetic . | . . . Secondary . | . . . Self-Inflicted Damage . | . . . Shots . | . . . Rammed . | . . . Targets Rammed . | . . . Kicked . | . . . Crushed . | . . . Highest Temperature 319 | 82 164 319 Average Temperature 84 | 46 59 99 Received Heat Transfer 531 | 12 24 495 Siege Activations . | . . . Robots Corrupted . | . . . Combat Hostiles . | . . . Parts Fried . | . . . Impact Corruptions . | . . . Robots Melted . | . . . Combat Hostiles . | . . . Parts Melted 2 | . 1 1 Heat Transferred 1258 | 111 259 888 Parts Sabotaged . | . . . Parts Stolen . | . . . Parts Stripped . | . . . Power Chain Reactions . | . . . Alert | -11 -10 -10 ------- Run | Yrd Mat Min Peak Influence 125 | 20 92 125 Initial 35 | . 13 35 Average 57 | 2 61 64 Maximum Alert Level . | . . . Low Security (%) 100 | 100 100 100 Level 1 . | . . . Level 2 . | . . . Level 3 . | . . . Level 4 . | . . . Level 5 . | . . . High Security . | . . . Max Security . | . . . Squads Dispatched 1 | . 1 . Investigation . | . . . Extermination . | . . . Reinforcement 1 | . 1 . Assault . | . . . Garrison . | . . . Intercept . | . . . Searches Triggered . | . . . Construction Impeded . | . . . Haulers Reinforced . | . . . Active Scanning Responses . | . . . Cargo Convoy Interrupts . | . . . Stealth | -11 -10 -10 --------- Run | Yrd Mat Min Distress Signals . | . . . Communications Jammed . | . . . Distress Signals . | . . . Times Spotted 17 | 1 7 9 Peak Tracking Total 4 | 1 4 2 Tactical Retreats 1 | . . 1 Traps | -11 -10 -10 ------- Run | Yrd Mat Min Traps Triggered 2 | . 2 . Indirectly . | . . . Trap Hack Attempts . | . . . Triggered . | . . . Disarmed . | . . . Reprogrammed . | . . . Reused . | . . . Traps Extracted . | . . . Installed . | . . . Triggered . | . . . Most Traps Carried 3 | . . 3 Machines | -11 -10 -10 ---------- Run | Yrd Mat Min Machines Disabled . | . . . Max in Single Turn . | . . . Machines Repaired . | . . . Machines Dismantled . | . . . Machines Sabotaged . | . . . Overloaded Fab Kills . | . . . Hacking | -11 -10 -10 --------- Run | Yrd Mat Min Machines Accessed 2 | . 1 1 Terminals 2 | . 1 1 Fabricators . | . . . Repair Stations . | . . . Recycling Units . | . . . Scanalyzers . | . . . Garrison Access . | . . . Total Hacks 5 | . 4 1 Successful 3 | . 2 1 Failed 2 | . 2 . Catastrophic . | . . . Database Lockouts . | . . . Manual 3 | . 1 2 Terminals 5 | . 4 1 Fabricators . | . . . Repair Stations . | . . . Recycling Units . | . . . Scanalyzers . | . . . Garrison Access . | . . . Terminal Hacks 3 | . 2 1 Record 3 | . 2 1 Fabricator Hacks . | . . . Repair Station Hacks . | . . . Recycling Unit Hacks . | . . . Scanalyzer . | . . . Garrison Access Hacks . | . . . Unauthorized Hacks . | . . . Terminals . | . . . Fabricators . | . . . Repair Stations . | . . . Recycling Units . | . . . Scanalyzers . | . . . Garrison Access . | . . . Data Cores Recovered . | . . . Used . | . . . Hacking Detections 2 | . 1 1 Full Trace Events 1 | . 1 . Feedback Events . | . . . Feedback Blocked . | . . . Robot Schematics Acquired . | . . . Robots Built . | . . . Authchips . | . . . Time . | . . . Total Robot Build Rating . | . . . Part Schematics Acquired . | . . . Parts Built . | . . . Authchips . | . . . Time . | . . . Total Part Build Rating . | . . . Parts Repaired . | . . . Time . | . . . Parts Recycled . | . . . Recycled Matter . | . . . Retrieved Matter . | . . . Retrieved Components . | . . . Parts Scanalyzed . | . . . Part Schematics Acquired . | . . . Parts Damaged . | . . . Bothacking | -11 -10 -10 ------------ Run | Yrd Mat Min Used RIF Installer . | . . . Robots Hacked 2 | . 1 1 Non-combat 2 | . 1 1 Combat . | . . . Robot Hacks Applied 4 | . 2 2 parse_system 2 | . 1 1 no_distress 2 | . 1 1 Relay Couplers Released . | . . . Fabnet Peak Effective % . | . . . Robots Rewired . | . . . Allies Hacked . | . . . Hacks Repelled . | . . . Allies | -11 -10 -10 -------- Run | Yrd Mat Min Total Allies . | . . . Largest Group . | . . . Highest-Rated Group . | . . . Highest-Rated Ally . | . . . Total Orders . | . . . Ally Attacks . | . . . Total Damage . | . . . Kills . | . . . Allies Corrupted . | . . . Allies Melted . | . . . Intel | -11 -10 -10 ------- Run | Yrd Mat Min Robot Analysis Total . | . . . Derelict Logs Recovered 2 | . . 2 Drone Launches . | . . . Drone Recoveries . | . . . Exploration | -11 -10 -10 ------------- Run | Yrd Mat Min Turns Passed 1036 | 96 226 714 Spaces Moved 669 | 76 130 463 Core 21 | 21 . . Treads . | . . . Legs 648 | 55 130 463 Wheels . | . . . Hover . | . . . Flight . | . . . Fastest Speed 50 | 50 120 120 Average Speed 117 | 100 120 120 Slowest Speed 120 | 120 120 120 Overloaded Moves . | . . . Propulsion Burnouts . | . . . Robots Hopped . | . . . Cave-ins Triggered . | . . . Exploration Rate (%) 30 | 6 17 67 Regions Visited 2 Branch Regions 1 Pre-discovered Areas 2 | . . 2 Known Exits Taken . | . . . Unknown Exits Taken 2 | 1 1 . Scrap Searched 1 | . . 1 Spaces Dug . | . . . Terrain Destroyed . | . . . Melee . | . . . Projectile . | . . . AOE . | . . . Terrain Rammed . | . . . Walls Destroyed . | . . . Machines Disabled . | . . . Actions | -11 -10 -10 --------- Run | Yrd Mat Min Total 830 | 89 175 566 Wait 39 | 1 21 17 Move 667 | 75 129 463 Hop . | . . . Pick Up 12 | 5 1 6 Fast Attach 8 | 1 3 4 Attach 4 | 4 . . Detach 3 | . 1 2 Swap 9 | . 1 8 Drop 17 | . 2 15 Fire 58 | 3 15 40 Melee 13 | . 2 11 Ram . | . . . Kick . | . . . Crush . | . . . Escape Stasis . | . . . Rewire . | . . . Trap . | . . . Miscellaneous . | . . . Route ------- -11/Scrapyard -10/Materials -10/Mines History --------- Turn | Location | Event 2 | -11/Scrapyard | Met Revision 17 73 | -11/Scrapyard | Discovered new exit (range 8) 97 | -11/Scrapyard | Entered Materials 291 | -10/Materials | Discovered new exit (range 7) 302 | -10/Materials | Build established: Mutant 323 | -10/Materials | Entered Mines 335 | -10/Mines | Found a hidden stash of uninstalled traps 344 | -10/Mines | Learned location of Storage (-8) 630 | -10/Mines | Learned 2 Materials zone layouts 754 | -10/Mines | Learned location of Zion (-7) 997 | -10/Mines | Core integrity fell below 50% 1028 | -10/Mines | Core integrity fell below 20% 1037 | -10/Mines | Destroyed by G-47 Trooper with Particle Gun Last Messages --------------- Dropped Aluminum Leg. Acquired 10 matter. Connecting with Terminal... Current location identified: Mines >>Query(Recycling Unit) Deconstruction apparatus for breaking down old components delivered by Recycler class robots. Condensed matter is contained within the unit until it reaches a certain quota, at which point it is transferred to the nearest [DSF]. K-01 Serf collects debris. Critical hit (Burn: +37). Beam Cannon destroyed. G-34 Mercenary destroyed. K-01 Serf collects debris. Critical hit (Burn: +37). K-01 Serf collects debris. Aluminum Leg destroyed. Critical hit (Burn: +37). K-01 Serf collects debris. Map ----- +----------------------------------------------------+ | ?????????????????????????????????????????????????? | | ?????????????????????????????????????????????????# | | ?????????????????????????????????????????????????# | | ?????????????????????????????????????????????????# | | ?????????????????????????????????????????????????# | | ????????????????????????????????????????????????## | | ???????????????????????###??????????###????????## | | ???????????????????????# ?????????## ##?????## | | ???????????????????????# ?????????# #????## | | ??????????????????????? #????????# #???## | | ???????????????????????# #????????# ##??# | | ???????????????????????# #????????# #??# | | ???????????????????????# #????????# #??# | | ???????????????????????# #????????## #### # | | ???????????????????????# #?????????## ## ## | | ??????????????????????## #?????####### ##? | | ????????????????????### ####### """ #?? | | ???????????????????## ## ## """ ##? | | ??????????? ????# """ # ##### """ ## | | ??????????# ## """r # #???## # | | ???????????# """ ## ## #????# | | ????????????# ### ## #????## | | ????????????????######## #?# ## #?????##### # | | ???????????????????????# #?# ## #?????????# ## | | ???????????????????????#gk#?# #??????#### ## | | ?????????????###???????# @#?# #??????# | | ????????????## ##??????# #?########??????# ## | | ????????????# ##?????#k #???????????????# ### | | ???????????## ##????# #???????????????# #?## | | ??????????## ###### #???????????????# #??## | | ??###???### #???????????????# #???# | | ??# #### ###### ##??????????????# #??## | | ??# ##???## ##?????????????# #?## | | ??# #????# ##????????????# #?# | | ??# ### ##???# ##???????????#=#?# | | ??# #### ##?## #??##########%#?# | | ?# ### ### %* #??# *=#?# | | ?# ### [ #??# ############ | | ?# ### ## ##??# #????????## | | ?###?# #### ###???# #????????# | | ?????# #??### ##?????# #????????# | | ?????## ##???## ##?????# #????????# # | | ??????## #????# #?????# #????????## ## | | ???????## ##???# #######%#?????????##### | | #???????# #???# =#?????????????# | | ###?????# #???## ######## #?????????????# | | ##???## #????######??????# #?????????????# | | ##??# #????????????##### ##????????????# | | ##?# ##????????????# ##???????????# | | ### ##?????????????# T#???????????# | +----------------------------------------------------+ Best States ------------- Heat Dissipation 39 Energy Generation 10 Energy Capacity 250 Matter Stores 300 Matter Capacity 300 Sight Range 16 Terrain Scan Density 10 Power Shielding 33 Evasion (%) 55 Item Schematics ----------------- None Robot Schematics ------------------ None Fabricated ------------ Nothing Alien Tech Used ----------------- None Achievements -------------- None Challenges ------------ None Game ------ Seed DecoderMinesnifferBuckler Manual? 0 Play Time 00:26:36 Cumulative 3.2 hours Start 2024.07.20 @ 19:13:01 End 2024.07.20 @ 19:39:12 Sessions 1 Manual Loads 0 Difficulty Rogue Special Mode None Game No. 3 Rogue 3 Adventurer 0 Explorer 0 Win Type - Total 0 Types 0/0/0/0/0/0/0/0/0 Lore% 7 Gallery% 8 Achievement% 8 Wizard Run 0 Options --------- Layout 1 ASCII 0 Keyboard 0 Movement Mouse Keybinds 0 Fullscreen 1 Font 16/SmallcapsGlow Map View 50x35 Zoom Use 0% Tactical HUD 0 Map Filters NONE Filters NONE Steam SD RUN: 6ccdb723-2e14-4d9f-8534-34c8885a6580